fUST/lending_fUST_20250218
["ID","MTS","AMOUNT","RATE_DAILY","PERIOD"]
[353468209,1739866232933,-500.0,0.0001393,2]
[353468210,1739866232943,-500.0,0.0001393,2]
[353468211,1739866232953,-500.0,0.0001393,2]
[353468213,1739866232963,-500.0,0.0001393,2]
[353468215,1739866232974,-500.0,0.0001393,2]
[353468218,1739866232985,-500.0,0.0001393,2]
[353468220,1739866232995,-500.0,0.0001393,2]
[353468221,1739866233005,-500.0,0.0001393,2]
[353468223,1739866233016,-500.0,0.0001393,2]
[353468225,1739866233025,-632.71,0.0001393,2]
[353468226,1739866233036,-568.38,0.0001393,2]
[353468227,1739866233046,-500.0,0.0001393,2]
[353468228,1739866233056,-500.0,0.0001393,2]
[353468229,1739866233067,-500.0,0.0001393,2]
[353468230,1739866233077,-500.0,0.0001393,2]
[353468231,1739866233091,-500.0,0.0001393,2]
[353468232,1739866233102,-500.0,0.0001393,2]
[353468233,1739866233112,-500.0,0.0001393,2]
[353468234,1739866233121,-500.0,0.0001393,2]
[353468235,1739866233132,-500.0,0.0001393,2]
[353468236,1739866233142,-500.0,0.0001393,2]
[353468237,1739866233153,-500.0,0.0001393,2]
[353468238,1739866233163,-500.0,0.0001393,2]
[353468239,1739866233174,-500.0,0.0001393,2]
[353468240,1739866233184,-500.0,0.0001393,2]
[353468241,1739866233195,-500.0,0.0001393,2]
[353468242,1739866233206,-500.0,0.0001393,2]
[353468243,1739866233216,-500.0,0.0001393,2]
[353468244,1739866233226,-500.0,0.0001393,2]
[353468245,1739866233237,-500.0,0.0001393,2]
[353468246,1739866233247,-500.0,0.0001393,2]
[353468247,1739866233258,-500.0,0.0001393,2]
[353468248,1739866233268,-214.077,0.00013931,2]
[353468249,1739866233278,-500.0,0.00013931,2]
[353468250,1739866233288,-501.44539442,0.00013931,2]
[353468251,1739866233298,-500.0,0.00013931,2]
[353468252,1739866233309,-500.0,0.00013931,2]
[353468253,1739866233319,-500.0,0.00013931,2]
[353468254,1739866233328,-500.0,0.00013931,2]
[353468255,1739866233340,-635.48991678,0.00013931,2]
[353468256,1739866233350,-500.0,0.00013931,2]
[353468257,1739866233360,-500.0,0.00013931,2]
[353468258,1739866233370,-504.77239503,0.00013931,2]
[353468259,1739866233380,-500.0,0.00013931,2]
[353468260,1739866233392,-500.0,0.00013931,2]
[353468261,1739866233402,-500.0,0.00013931,2]
[353468262,1739866233412,-511.82078879,0.00013931,2]
[353468263,1739866233423,-500.0,0.00013931,2]
[353468264,1739866233432,-500.0,0.00013931,2]
[353468265,1739866233443,-500.0,0.00013931,2]
[353468266,1739866233453,-500.0,0.00013931,2]
[353468267,1739866233463,-500.0,0.00013931,2]
[353468268,1739866233473,-500.0,0.00013931,2]
[353468269,1739866233483,-500.0,0.00013931,2]
[353468270,1739866233493,-359.16113797,0.00013931,2]
[353468271,1739866233503,-500.0,0.00013931,2]
[353468272,1739866233513,-507.61810484,0.00013931,2]
[353468273,1739866233523,-500.0,0.00013931,2]
[353468274,1739866233533,-556.09864368,0.00013931,2]
[353468275,1739866233543,-361.54748092,0.00013931,2]
[353468276,1739866233553,-500.0,0.00013931,2]
[353468277,1739866233563,-500.0,0.00013931,2]
[353468278,1739866233574,-505.67979173,0.00013931,2]
[353468279,1739866233584,-500.0,0.00013931,2]
[353468280,1739866233596,-500.0,0.00013931,2]
[353468281,1739866233606,-507.13549673,0.00013931,2]
[353468282,1739866233616,-501.63754795,0.00013931,2]
[353468283,1739866233626,-500.0,0.00013931,2]
[353468284,1739866233635,-500.0,0.00013931,2]
[353468285,1739866233645,-500.0,0.00013931,2]
[353468286,1739866233655,-500.0,0.00013931,2]
[353468287,1739866233665,-500.0,0.00013931,2]
[353468288,1739866233675,-500.0,0.00013931,2]
[353468289,1739866233686,-500.0,0.00013931,2]
[353468290,1739866233696,-500.0,0.00013931,2]
[353468291,1739866233706,-500.0,0.00013931,2]
[353468292,1739866233716,-150.46282746,0.00013931,2]
[353468304,1739866238600,-500.0,0.0001393,2]
[353468305,1739866238611,-349.53717254,0.00013931,2]
[353468306,1739866238621,-528.86405383,0.00013931,2]
[353468307,1739866238631,-500.0,0.00013931,2]
[353468308,1739866238641,-500.28283846,0.00013931,2]
[353468309,1739866238650,-500.0,0.00013931,2]
[353468310,1739866238661,-500.0,0.00013931,2]
[353468311,1739866238670,-500.0,0.00013931,2]
[353468312,1739866238680,-500.0,0.00013931,2]
[353468313,1739866238689,-500.0,0.00013931,2]
[353468314,1739866238699,-500.0,0.00013931,2]
[353468316,1739866238710,-500.0,0.00013931,2]
[353468317,1739866238719,-500.0,0.00013931,2]
[353468319,1739866238728,-504.14636842,0.00013931,2]
[353468320,1739866238738,-500.0,0.00013931,2]
[353468321,1739866238747,-500.0,0.00013931,2]
[353468322,1739866238757,-500.0,0.00013931,2]
[353468323,1739866238767,-505.27395565,0.00013931,2]
[353468325,1739866238777,-500.0,0.00013931,2]
[353468327,1739866238786,-500.0,0.00013931,2]
[353468328,1739866238798,-500.0,0.00013931,2]
[353468329,1739866238810,-500.0,0.00013931,2]
[353468330,1739866238821,-507.18033342,0.00013931,2]
[353468331,1739866238833,-500.0,0.00013931,2]
[353468332,1739866238845,-500.0,0.00013931,2]
[353468333,1739866238856,-500.0,0.00013931,2]
[353468334,1739866238867,-500.0,0.00013931,2]
[353468335,1739866238877,-500.0,0.00013931,2]
[353468336,1739866238887,-538.23,0.00013931,2]
[353468337,1739866238901,-501.87035438,0.00013931,2]
[353468338,1739866238913,-500.0,0.00013931,2]
[353468339,1739866238924,-505.27644101,0.00013931,2]
[353468340,1739866238935,-500.0,0.00013931,2]
[353468341,1739866238947,-500.0,0.00013931,2]
[353468342,1739866238958,-534.69,0.00013931,2]
[353468343,1739866238971,-501.90806868,0.00013931,2]
[353468344,1739866238982,-500.0,0.00013931,2]
[353468345,1739866238993,-500.0,0.00013931,2]
[353468346,1739866239004,-500.0,0.00013931,2]
[353468347,1739866239015,-500.0,0.00013931,2]
[353468348,1739866239026,-500.0,0.00013931,2]
[353468349,1739866239037,-305.79086805,0.00013931,2]
[353468350,1739866239048,-366.35790411,0.00013931,2]
[353468351,1739866239059,-500.0,0.00013931,2]
[353468352,1739866239070,-500.0,0.00013931,2]
[353468353,1739866239081,-500.0,0.00013931,2]
[353468354,1739866239092,-500.0,0.00013931,2]
[353468355,1739866239103,-500.0,0.00013931,2]
[353468356,1739866239113,-500.0,0.00013931,2]
[353468357,1739866239125,-592.57,0.00013931,2]
[353468358,1739866239136,-501.85525763,0.00013931,2]
[353468359,1739866239147,-503.13433905,0.00013931,2]
[353468360,1739866239157,-500.0,0.00013931,2]
[353468361,1739866239167,-509.82148614,0.00013931,2]
[353468362,1739866239178,-500.0,0.00013931,2]
[353468363,1739866239188,-620.18,0.00013931,2]
[353468364,1739866239198,-500.0,0.00013931,2]
[353468365,1739866239208,-500.0,0.00013931,2]
[353468366,1739866239219,-500.0,0.00013931,2]
[353468367,1739866239228,-500.0,0.00013931,2]
[353468368,1739866239239,-500.0,0.00013931,2]
[353468369,1739866239250,-500.0,0.00013931,2]
[353468370,1739866239261,-500.0,0.00013931,2]
[353468371,1739866239271,-500.0,0.00013931,2]
[353468372,1739866239282,-362.19803798,0.00013931,2]
[353468373,1739866239292,-500.0,0.00013931,2]
[353468374,1739866239303,-500.0,0.00013931,2]
[353468375,1739866239313,-579.2424811,0.00013931,2]
[353468376,1739866239323,-500.0,0.00013931,2]
[353468377,1739866239333,-500.0,0.00013931,2]
[353468378,1739866239344,-501.89892882,0.00013931,2]
[353468379,1739866239353,-500.0,0.00013931,2]
[353468380,1739866239363,-500.0,0.00013931,2]
[353468381,1739866239375,-500.0,0.00013931,2]
[353468382,1739866239385,-500.0,0.00013931,2]
[353468383,1739866239395,-606.5,0.00013931,2]
[353468384,1739866239406,-500.0,0.00013931,2]
[353468385,1739866239417,-500.0,0.00013931,2]
[353468386,1739866239428,-500.0,0.00013931,2]
[353468387,1739866239439,-205.79299225,0.00013931,2]
[353468388,1739866239450,-548.13,0.00013931,2]
[353468389,1739866239460,-500.0,0.00013931,2]
[353468390,1739866239471,-568.21,0.00013931,2]
[353468391,1739866239481,-500.0,0.00013931,2]
[353468392,1739866239492,-500.0,0.00013931,2]
[353468393,1739866239503,-500.0,0.00013931,2]
[353468394,1739866239514,-500.0,0.00013931,2]
[353468395,1739866239525,-630.45,0.00013931,2]
[353468396,1739866239535,-500.0,0.00013931,2]
[353468397,1739866239547,-500.0,0.00013931,2]
[353468398,1739866239557,-500.0,0.00013931,2]
[353468399,1739866239569,-500.0,0.00013931,2]
[353468400,1739866239580,-500.0,0.00013931,2]
[353468401,1739866239591,-162.39846894,0.00013931,2]
[353468402,1739866239603,-500.0,0.00013931,2]
[353468403,1739866239613,-500.0,0.00013931,2]
[353468404,1739866239623,-1234.38,0.00013931,2]
[353468405,1739866239633,-500.0,0.00013931,2]
[353468406,1739866239643,-453.24179891,0.00013931,2]
[353468407,1739866239653,-500.0,0.00013931,2]
[353468408,1739866239662,-500.0,0.00013931,2]
[353468409,1739866239672,-500.0,0.00013931,2]
[353468410,1739866239682,-623.82,0.00013931,2]
[353468411,1739866239692,-500.0,0.00013931,2]
[353468412,1739866239703,-500.0,0.00013932,2]
[353468413,1739866239714,-501.3838639,0.00013932,2]
[353468414,1739866239725,-500.0,0.00013932,2]
[353468415,1739866239737,-500.0,0.00013932,2]
[353468416,1739866239747,-218.21257935,0.00014012,2]
[353468417,1739866239758,-500.0,0.00014012,2]
[353468418,1739866239769,-500.0,0.00014012,2]
[353468419,1739866239780,-467.56,0.00014012,2]
[353468420,1739866239789,-388.53,0.00014012,2]
[353468421,1739866239799,-500.0,0.00014012,2]
[353468422,1739866239810,-500.0,0.00014012,2]
[353468423,1739866239821,-500.0,0.00014012,2]
[353468424,1739866239832,-500.0,0.00014012,2]
[353468425,1739866239842,-500.0,0.00014012,2]
[353468426,1739866239852,-292.0,0.00014012,2]
[353468427,1739866239864,-249.98,0.00014012,2]
[353468428,1739866239874,-500.0,0.00014012,2]
[353468429,1739866239886,-500.0,0.00014012,2]
[353468430,1739866239898,-494.94,0.00014012,2]
[353468431,1739866239909,-425.71,0.00014012,2]
[353468432,1739866239919,-400.31,0.00014012,2]
[353468433,1739866239930,-500.0,0.00014012,2]
[353468434,1739866239942,-190.31,0.00014013,2]
[353468435,1739866239952,-366.23,0.00014013,2]
[353468436,1739866239963,-350.63,0.00014013,2]
[353468437,1739866239974,-173.69,0.00014013,2]
[353468438,1739866239984,-317.49,0.00014013,2]
[353468439,1739866239995,-231.96,0.00014013,2]
[353468440,1739866240005,-1234.38,0.00014013,2]
[353468441,1739866240016,-500.0,0.00014013,2]
[353468442,1739866240026,-165.23,0.00014013,2]
[353468443,1739866240037,-444.95,0.00014013,2]
[353468444,1739866240047,-623.82,0.00014013,2]
[353468445,1739866240058,-151.0,0.00014019,2]
[353468446,1739866240068,-500.0,0.00014094,2]
[353468447,1739866240079,-500.0,0.00014094,2]
[353468448,1739866240089,-500.0,0.00014095,2]
[353468449,1739866240099,-500.0,0.00014095,2]
[353468450,1739866240223,-500.0,0.00014095,2]
[353468451,1739866240234,-277.41,0.00014095,2]
[353468452,1739866240244,-500.0,0.00014095,2]
[353468453,1739866240254,-500.0,0.00014095,2]
[353468454,1739866240264,-348.33,0.00014095,2]
[353468455,1739866240273,-500.0,0.00014095,2]
[353468456,1739866240282,-291.64,0.00014095,2]
[353468457,1739866240292,-500.0,0.00014095,2]
[353468458,1739866240301,-500.0,0.00014095,2]
[353468459,1739866240311,-1234.38,0.00014096,2]
[353468460,1739866240320,-433.8707148,0.00014096,2]
[353468461,1739866240330,-623.82,0.00014096,2]
[353468462,1739866240340,-500.0,0.00014122,2]
[353468463,1739866240349,-500.0,0.00014122,2]
[353468464,1739866240359,-500.0,0.00014123,2]
[353468465,1739866240368,-500.0,0.00014177,2]
[353468466,1739866240378,-156.23,0.00014177,2]
[353468467,1739866240387,-267.26,0.00014177,2]
[353468468,1739866240396,-219.32,0.00014177,2]
[353468469,1739866240405,-500.0,0.00014177,2]
[353468470,1739866240414,-647.45,0.00014177,2]
[353468471,1739866240423,-611.78,0.00014177,2]
[353468472,1739866240433,-1234.38,0.00014178,2]
[353468473,1739866240442,-623.82,0.00014178,2]
[353468474,1739866240451,-500.0,0.00014259,2]
[353468475,1739866240460,-500.0,0.00014259,2]
[353468476,1739866240469,-1234.38,0.0001426,2]
[353468477,1739866240478,-623.82,0.0001426,2]
[353468478,1739866240488,-500.0,0.00014341,2]
[353468479,1739866240497,-511.5,0.00014341,2]
[353468480,1739866240506,-1234.38,0.00014342,2]
[353468481,1739866240515,-623.82,0.00014342,2]
[353468482,1739866240525,-500.0,0.00014423,2]
[353468483,1739866240534,-500.0,0.00014424,2]
[353468484,1739866240543,-500.0,0.00014424,2]
[353468485,1739866240552,-1234.38,0.00014424,2]
[353468486,1739866240562,-623.82,0.00014424,2]
[353468487,1739866240572,-700.0,0.00014438,2]
[353468488,1739866240581,-500.0,0.00014506,2]
[353468489,1739866240591,-1234.38,0.00014507,2]
[353468490,1739866240600,-623.82,0.00014507,2]
[353468491,1739866240610,-166.1,0.00014567,2]
[353468492,1739866240620,-500.0,0.00014588,2]
[353468493,1739866240629,-1234.38,0.00014589,2]
[353468494,1739866240639,-623.82,0.00014589,2]
[353468495,1739866240648,-1000.0,0.0001467,2]
[353468496,1739866240658,-500.0,0.0001467,2]
[353468497,1739866240667,-1234.38,0.00014671,2]
[353468498,1739866240676,-623.82,0.00014671,2]
[353468499,1739866240686,-373.73,0.00014752,2]
[353468501,1739866240696,-1234.38,0.00014753,2]
[353468502,1739866240705,-623.82,0.00014753,2]
[353468503,1739866240715,-1234.38,0.00014835,2]
[353468504,1739866240724,-623.82,0.00014835,2]
[353468505,1739866240734,-469.38670241,0.00014917,2]
[353468506,1739866240744,-1234.38,0.00014918,2]
[353468508,1739866240753,-623.82,0.00014918,2]
[353468510,1739866240763,-2226.71016641,0.00014971,2]
[353468511,1739866240772,-23431.46185751,0.00015,2]
[353468512,1739866240786,-2107.52845886,0.00015,2]
[353468513,1739866240795,-1234.38,0.00015,2]
[353468515,1739866240805,-623.82,0.00015,2]
[353468517,1739866240814,-1234.38,0.00015082,2]
[353468519,1739866240823,-623.82,0.00015082,2]
[353468520,1739866240832,-182.71,0.00015115,2]
[353468521,1739866240842,-1234.38,0.00015164,2]
[353468522,1739866240851,-623.82,0.00015164,2]
[353468524,1739866240860,-1234.38,0.00015246,2]
[353468526,1739866240869,-623.82,0.00015246,2]
[353468528,1739866240878,-1234.38,0.00015329,2]
[353468530,1739866240888,-623.82,0.00015329,2]
[353468532,1739866240901,-1234.38,0.00015411,2]
[353468534,1739866240910,-623.82,0.00015411,2]
[353468536,1739866240919,-1234.38,0.00015493,2]
[353468538,1739866240929,-623.82,0.00015493,2]
[353468540,1739866240940,-575.64,0.00015537,2]
[353468542,1739866240949,-1234.38,0.00015575,2]
[353468544,1739866240959,-623.82,0.00015575,2]
[353468546,1739866240969,-1234.38,0.00015657,2]
[353468548,1739866240978,-623.82,0.00015657,2]
[353468550,1739866240987,-200.981,0.00015663,2]
[353468552,1739866240997,-1500.0,0.00015672,2]
[353468554,1739866241006,-1234.38,0.0001574,2]
[353468556,1739866241014,-623.82,0.0001574,2]
[353468558,1739866241023,-700.0,0.00015808,2]
[353468560,1739866241032,-1234.48,0.00015822,2]
[353468562,1739866241041,-624.05,0.00015822,2]
[353468564,1739866241050,-150.0,0.00016,2]
[353468566,1739866241060,-580.75,0.00016164,2]
[353468568,1739866241069,-221.0791,0.00016211,2]
[353468570,1739866241079,-396.0,0.00016506,2]
[353468572,1739866241088,-302.0,0.00016759,2]
[353468574,1739866241098,-1436.55053,0.00016907,30]
[353468575,1739866241108,-150.0,0.00016913,2]
[353468576,1739866241117,-538.0,0.00016913,2]
[353468577,1739866241127,-1971.0,0.00016913,2]
[353468578,1739866241136,-2289.0,0.00016913,2]
[353468579,1739866241145,-2000.0,0.00016969,2]
[353468580,1739866241154,-176.0,0.00017,14]
[353468581,1739866241164,-176.0,0.00017,14]
[353468582,1739866241173,-181.01347184,0.00017,6]
[353468583,1739866241183,-700.0,0.00017178,2]
[353468584,1739866241192,-456.5242523,0.00017178,2]
[353468585,1739866241202,-400.0,0.00017332,2]
[353468586,1739866241211,-168.25224142,0.0001737,2]
[353468587,1739866241220,-500.0,0.00017397,2]
[353468588,1739866241230,-580.75,0.00017534,4]
[353468589,1739866241239,-634.8569773,0.0001763,2]
[353468590,1739866241248,-157.3045754,0.00017799,2]
[353468591,1739866241257,-1094.62369485,0.000178,2]
[353468592,1739866241267,-200.0,0.000178,15]
[353468593,1739866241276,-200.0,0.000178,15]
[353468594,1739866241285,-159.05177,0.0001785,4]
[353468595,1739866241295,-15094.56272336,0.00017881,2]
[353468596,1739866241304,-3000.0,0.000179,2]
[353468597,1739866241313,-200.0,0.000179,15]
[353468598,1739866241322,-200.0,0.000179,31]
[353468599,1739866241331,-200.0,0.000179,31]
[353468600,1739866241341,-176.0,0.000179,31]
[353468601,1739866241350,-176.0,0.000179,31]
[353468602,1739866241360,-155.75,0.000179,31]
[353468603,1739866241369,-93271.54120467,0.0001798,7]
[353468604,1739866241381,-1763.36431776,0.0001798,7]
[353468626,1739866243687,-9862.62206123,0.0001798,7]
[353468633,1739866243741,-706.42615562,0.0001798,7]
[353468635,1739866243753,-8311.0,0.0001798,7]
[353468698,1739867231166,-700.0,0.00013068,2]
[353468699,1739867231189,-5.93109556,0.00013691,2]
[353468700,1739867238122,-394.06890444,0.00013691,2]
[353468701,1739867238143,-855.79289972,0.00013829,2]
[353468702,1739867246122,-281.20317066,0.00013829,2]
[353468713,1739867353155,-400.0,0.00010685,2]
[353468737,1739867431980,-600.0,0.00013068,2]
[353468738,1739867431990,-110.17380002,0.00013829,2]
[353468739,1739867432001,-463.2401,0.00013829,2]
[353468741,1739867432012,-289.5900296,0.00013829,2]
[353468742,1739867432022,-500.0,0.00013928,2]
[353468744,1739867432031,-358.04821648,0.00013928,2]
[353468746,1739867432040,-500.0,0.00013928,2]
[353468748,1739867432050,-500.0,0.00013928,2]
[353468750,1739867432059,-500.0,0.00013928,2]
[353468752,1739867432068,-500.0,0.00013928,2]
[353468753,1739867432078,-320.61777566,0.00013928,2]
[353468754,1739867432087,-500.0,0.00013928,2]
[353468755,1739867432096,-166.9833538,0.00013928,2]
[353468758,1739867432108,-333.0166462,0.00013928,2]
[353468759,1739867432118,-500.0,0.00013928,2]
[353468761,1739867432127,-500.0,0.00013928,2]
[353468762,1739867432138,-500.0,0.00013928,2]
[353468763,1739867432147,-500.0,0.00013928,2]
[353468764,1739867432157,-500.0,0.00013928,2]
[353468765,1739867432169,-500.0,0.00013928,2]
[353468766,1739867432179,-500.0,0.00013928,2]
[353468767,1739867432190,-500.0,0.00013928,2]
[353468768,1739867432200,-500.0,0.00013928,2]
[353468769,1739867432210,-500.0,0.00013928,2]
[353468770,1739867432221,-500.0,0.00013928,2]
[353468772,1739867432232,-500.0,0.00013928,2]
[353468773,1739867432244,-500.0,0.00013928,2]
[353468774,1739867432254,-500.0,0.00013928,2]
[353468775,1739867432266,-500.0,0.00013928,2]
[353468776,1739867432280,-500.0,0.00013928,2]
[353468777,1739867432295,-510.46228483,0.00013928,2]
[353468778,1739867432305,-500.0,0.00013928,2]
[353468779,1739867432315,-500.0,0.00013928,2]
[353468780,1739867432326,-500.0,0.00013928,2]
[353468781,1739867432336,-500.0,0.00013929,2]
[353468782,1739867432347,-162.66258253,0.00013929,2]
[353468783,1739867432356,-500.0,0.00013929,2]
[353468784,1739867432366,-500.0,0.00013929,2]
[353468785,1739867432376,-500.0,0.00013929,2]
[353468786,1739867432386,-500.0,0.00013929,2]
[353468787,1739867432395,-500.0,0.00013929,2]
[353468788,1739867432405,-500.0,0.00013929,2]
[353468789,1739867432414,-184.09803848,0.00013929,2]
[353468790,1739867432427,-202.236,0.00013929,2]
[353468791,1739867432437,-500.0,0.00013929,2]
[353468792,1739867432447,-500.0,0.00013929,2]
[353468793,1739867432457,-500.0,0.00013929,2]
[353468794,1739867432467,-500.0,0.00013929,2]
[353468795,1739867432477,-500.0,0.00013929,2]
[353468796,1739867432486,-500.0,0.00013929,2]
[353468797,1739867432495,-366.36173949,0.00013929,2]
[353468798,1739867432505,-501.25861821,0.00013929,2]
[353468799,1739867432514,-500.0,0.00013929,2]
[353468800,1739867432524,-500.0,0.00013929,2]
[353468801,1739867432533,-500.93852553,0.00013929,2]
[353468802,1739867432543,-500.48068869,0.00013929,2]
[353468803,1739867432552,-500.0,0.00013929,2]
[353468804,1739867432561,-500.0,0.00013929,2]
[353468805,1739867432572,-500.0,0.00013929,2]
[353468806,1739867432582,-500.0,0.00013929,2]
[353468807,1739867432591,-500.0,0.00013929,2]
[353468808,1739867432600,-500.0,0.00013929,2]
[353468809,1739867432610,-500.0,0.00013929,2]
[353468810,1739867432619,-500.0,0.00013929,2]
[353468811,1739867432629,-500.0,0.00013929,2]
[353468812,1739867432638,-500.0,0.00013929,2]
[353468813,1739867432648,-502.37520773,0.00013929,2]
[353468814,1739867432657,-501.52785191,0.00013929,2]
[353468815,1739867432667,-500.0,0.00013929,2]
[353468816,1739867432678,-501.27803309,0.00013929,2]
[353468817,1739867432687,-500.0,0.00013929,2]
[353468818,1739867432697,-500.0,0.00013929,2]
[353468819,1739867432706,-294.20700775,0.00013929,2]
[353468820,1739867432716,-500.0,0.00013929,2]
[353468821,1739867432725,-500.0,0.00013929,2]
[353468822,1739867432735,-500.0,0.00013929,2]
[353468823,1739867432745,-500.0,0.00013929,2]
[353468824,1739867432754,-501.12096867,0.00013929,2]
[353468825,1739867432763,-500.58449297,0.00013929,2]
[353468826,1739867432772,-501.39740741,0.00013929,2]
[353468827,1739867432781,-500.0,0.00013929,2]
[353468828,1739867432791,-475.69721992,0.00013929,2]
[353468829,1739867432801,-500.0,0.00013929,2]
[353468830,1739867432810,-501.77165164,0.00013929,2]
[353468831,1739867432824,-500.0,0.00013929,2]
[353468832,1739867432833,-500.0,0.00013929,2]
[353468833,1739867432842,-500.0,0.00013929,2]
[353468834,1739867432852,-500.0,0.00013929,2]
[353468835,1739867432861,-500.0,0.00013929,2]
[353468836,1739867432871,-168.1397986,0.00013929,2]
[353468837,1739867432880,-501.6736211,0.00013929,2]
[353468838,1739867432890,-500.0,0.00013929,2]
[353468839,1739867432899,-500.0,0.00013929,2]
[353468840,1739867432909,-500.0,0.00013929,2]
[353468841,1739867432922,-544.49,0.00013929,2]
[353468842,1739867432931,-500.0,0.00013929,2]
[353468843,1739867432941,-501.82769055,0.00013929,2]
[353468844,1739867432952,-501.89961858,0.00013929,2]
[353468845,1739867432961,-515.81,0.00013929,2]
[353468846,1739867432972,-500.0,0.00013929,2]
[353468847,1739867432984,-502.59886123,0.00013929,2]
[353468848,1739867432995,-500.0,0.00013929,2]
[353468849,1739867433007,-481.05243776,0.00013929,2]
[353468850,1739867433018,-599.35281634,0.00013929,2]
[353468851,1739867433028,-500.0,0.00013929,2]
[353468852,1739867433039,-500.0,0.00013929,2]
[353468853,1739867433049,-500.0,0.00013929,2]
[353468854,1739867433059,-500.0,0.00013929,2]
[353468855,1739867433069,-500.0,0.00013929,2]
[353468856,1739867433078,-500.0,0.00013929,2]
[353468857,1739867433088,-500.0,0.00013929,2]
[353468858,1739867433097,-500.0,0.00013929,2]
[353468859,1739867433107,-500.0,0.00013929,2]
[353468860,1739867433117,-501.24597653,0.00013929,2]
[353468861,1739867433127,-500.0,0.00013929,2]
[353468862,1739867433136,-500.0,0.00013929,2]
[353468863,1739867433145,-323.30390435,0.00013929,2]
[353468864,1739867433155,-500.0,0.00013929,2]
[353468865,1739867433164,-500.0,0.00013929,2]
[353468866,1739867433178,-500.0,0.00013929,2]
[353468867,1739867433188,-572.11,0.00013929,2]
[353468868,1739867433197,-594.34,0.00013929,2]
[353468869,1739867433206,-500.0,0.00013929,2]
[353468870,1739867433215,-500.0,0.00013929,2]
[353468871,1739867433225,-500.0,0.00013929,2]
[353468872,1739867433234,-500.0,0.00013929,2]
[353468873,1739867433243,-500.0,0.00013929,2]
[353468874,1739867433252,-187.65074797,0.00013929,2]
[353468875,1739867433262,-500.0,0.00013929,2]
[353468876,1739867433271,-500.0,0.00013929,2]
[353468877,1739867433283,-500.0,0.00013929,2]
[353468878,1739867433293,-500.0,0.00013929,2]
[353468879,1739867433304,-500.0,0.00013929,2]
[353468880,1739867433316,-500.0,0.00013929,2]
[353468881,1739867433327,-500.0,0.00013929,2]
[353468882,1739867433337,-500.0,0.00013929,2]
[353468883,1739867433348,-500.0,0.00013929,2]
[353468884,1739867433359,-500.0,0.00013929,2]
[353468885,1739867433369,-546.91,0.00013929,2]
[353468886,1739867433381,-645.62,0.00013929,2]
[353468887,1739867433390,-500.0,0.00013929,2]
[353468888,1739867433399,-581.23,0.00013929,2]
[353468889,1739867433409,-346.59434901,0.00013929,2]
[353468890,1739867433421,-500.0,0.00013929,2]
[353468891,1739867433431,-500.0,0.00013929,2]
[353468892,1739867433440,-500.0,0.00013929,2]
[353468893,1739867433450,-500.0,0.00013929,2]
[353468894,1739867433460,-525.29,0.00013929,2]
[353468895,1739867433469,-500.0,0.00013929,2]